fUSD/lending_fUSD_20260614
["ID","MTS","AMOUNT","RATE_DAILY","PERIOD"]
[424996886,1781395833000,-153.0,0.0001931,2]
[424996888,1781395833000,-313.0,0.0001931,2]
[424996893,1781395833000,-310.0,0.0001931,2]
[424996878,1781395833000,-166.66,0.00018395,2]
[424996889,1781395833000,-314.0,0.0001931,2]
[424996885,1781395833000,-166.66,0.00019123,2]
[424996875,1781395833000,-207.52,0.00018115,2]
[424996865,1781395833000,-311.0,0.00018,2]
[424996873,1781395833000,-200.0,0.00018114,2]
[424996890,1781395833000,-309.0,0.0001931,2]
[424996859,1781395833000,-312.0,0.00018,2]
[424996858,1781395833000,-318.0,0.00018,2]
[424996860,1781395833000,-151.0,0.00018,2]
[424996861,1781395833000,-311.0,0.00018,2]
[424996862,1781395833000,-316.0,0.00018,2]
[424996874,1781395833000,-250.0,0.00018114,2]
[424996863,1781395833000,-310.0,0.00018,2]
[424996864,1781395833000,-151.0,0.00018,2]
[424996867,1781395833000,-312.0,0.00018,2]
[424996868,1781395833000,-316.0,0.00018,2]
[424996871,1781395833000,-316.0,0.00018,2]
[424996869,1781395833000,-151.0,0.00018,2]
[424996872,1781395833000,-166.66,0.00018031,2]
[424996866,1781395833000,-315.0,0.00018,2]
[424996891,1781395833000,-151.0,0.0001931,2]
[424996870,1781395833000,-312.0,0.00018,2]
[424996895,1781395833000,-150.0,0.00019532,2]
[424996914,1781395833000,-311.16329766,0.00020518,2]
[424996927,1781395833000,-1254.41808677,0.00020618,2]
[424996913,1781395833000,-1705.25399725,0.00020518,2]
[424996916,1781395833000,-2779.6183,0.00020518,2]
[424996917,1781395833000,-200.22594973,0.00020555,2]
[424996918,1781395833000,-500.0,0.00020617,2]
[424996911,1781395833000,-400.0,0.00020026,2]
[424996919,1781395833000,-500.0,0.00020617,2]
[424996922,1781395833000,-3137.0617909,0.00020618,2]
[424996920,1781395833000,-500.0,0.00020617,2]
[424996923,1781395833000,-37456.36875543,0.00020618,2]
[424996925,1781395833000,-24460.71077308,0.00020618,2]
[424996921,1781395833000,-500.0,0.00020617,2]
[424996926,1781395833000,-19160.63883234,0.00020618,2]
[424996924,1781395833000,-407.60969053,0.00020618,2]
[424996909,1781395833000,-154.0,0.0002,2]
[424996915,1781395833000,-1064.2249893,0.00020518,2]
[424996908,1781395833000,-151.0,0.0002,2]
[424996894,1781395833000,-151.0,0.00019483,2]
[424996897,1781395833000,-312.0,0.00019597,2]
[424996896,1781395833000,-320.0,0.00019597,2]
[424996900,1781395833000,-314.0,0.0001964,2]
[424996910,1781395833000,-151.0,0.0002,2]
[424996898,1781395833000,-310.0,0.00019597,2]
[424996902,1781395833000,-151.0,0.0001968,2]
[424996899,1781395833000,-318.0,0.0001964,2]
[424996903,1781395833000,-317.0,0.00019877,2]
[424996901,1781395833000,-311.0,0.0001964,2]
[424996905,1781395833000,-156.0,0.0002,2]
[424996906,1781395833000,-37952.87889593,0.0002,2]
[424996907,1781395833000,-151.0,0.0002,2]
[424996912,1781395833000,-400.0,0.00020231,2]
[424996904,1781395833000,-311.0,0.00019877,2]
[424996892,1781395833000,-314.0,0.0001931,2]
[424996931,1781395838000,-701.38920061,0.00016423,2]
[424996937,1781395838000,-390.24986471,0.00020618,2]
[424996936,1781395838000,-648.26118234,0.00020618,2]
[424996934,1781395838000,-503.51033299,0.00020618,2]
[424996935,1781395838000,-152792.58742625,0.00020618,2]
[424996933,1781395838000,-215.98966701,0.00016745,2]
[424996932,1781395838000,-710.4678722,0.00016745,2]
[424997190,1781395840000,-409.76624878,0.00020618,2]
[424997148,1781395840000,-15530.11731051,0.00020618,2]
[424997236,1781395843000,-151.0,0.00017191,2]
[424997238,1781395843000,-455.03446,0.00020618,2]
[424997243,1781395846000,-249.71712238,0.00018,2]
[424997242,1781395846000,-151.0,0.00017191,2]
[424997249,1781396827000,-94.52003768,0.00017191,2]
[424997248,1781396827000,-151.0,0.00017093,2]
[424997247,1781396827000,-150.0,0.00016675,2]
[424997246,1781396827000,-156.63740033,0.00016404,2]
[424997252,1781396843000,-300.0,0.00017197,2]
[424997250,1781396843000,-56.47996232,0.00017191,2]
[424997253,1781396843000,-600.0,0.00017198,2]
[424997254,1781396843000,-88.34367184,0.00017198,2]
[424997251,1781396843000,-200.0,0.00017194,2]
[424997255,1781396852000,-339.35080915,0.00017198,2]
[424997256,1781396942000,250.0,0.00014,2]
[424997258,1781397031000,-200.80905334,0.00017386,2]
[424997261,1781397031000,-752.34942587,0.00017666,2]
[424997257,1781397031000,-2500.0,0.00017292,2]
[424997260,1781397031000,-600.0,0.00017479,2]
[424997259,1781397031000,-2500.0,0.00017479,2]
[424997263,1781397031000,-502.0,0.00018,2]
[424997264,1781397031000,-183.43552427,0.00018163,2]
[424997265,1781397031000,-1500.0,0.00018164,2]
[424997267,1781397031000,-1211.63,0.00018535,2]
[424997266,1781397031000,-401.96,0.00018444,2]
[424997268,1781397031000,-176.49,0.00018808,2]
[424997262,1781397031000,-600.0,0.00017913,2]
[424997277,1781397032000,-402.74,0.00019178,2]
[424997286,1781397032000,-151.0,0.0002,2]
[424997285,1781397032000,-200.0,0.0001978,2]
[424997284,1781397032000,-176.49,0.00019748,2]
[424997278,1781397032000,-402.74,0.00019178,2]
[424997269,1781397032000,-2500.0,0.00018917,2]
[424997274,1781397032000,-298.03925892,0.00019022,2]
[424997271,1781397032000,-3037.56865227,0.00019022,2]
[424997273,1781397032000,-200.0,0.00019022,2]
[424997270,1781397032000,-2500.0,0.00019022,2]
[424997272,1781397032000,-600.0,0.00019022,2]
[424997276,1781397032000,-470.5,0.00019089,2]
[424997287,1781397032000,-198.0,0.0002,2]
[424997275,1781397032000,-340.43,0.00019032,2]
[424997283,1781397032000,-166.66,0.00019703,2]
[424997282,1781397032000,-571.01,0.000197,2]
[424997281,1781397032000,-478.86676503,0.00019628,2]
[424997279,1781397032000,-166.66,0.00019297,2]
[424997288,1781397032000,-181.0,0.0002,2]
[424997290,1781397032000,-931.19686562,0.00020328,2]
[424997289,1781397032000,-166.66,0.0002011,2]
[424997293,1781397032000,-1693.02129222,0.00020428,2]
[424997292,1781397032000,-1557.96886975,0.00020416,2]
[424997291,1781397032000,-676.82613094,0.00020328,2]
[424997295,1781397032000,-283.14316016,0.00020428,2]
[424997294,1781397032000,-4242.25251738,0.00020428,2]
[424997296,1781397032000,-4015.75667171,0.00020428,2]
[424997280,1781397032000,-185.69,0.00019371,2]
[424997308,1781397037000,-1167.5,0.00020428,2]
[424997309,1781397037000,-1030.70236582,0.00020428,2]
[424997315,1781397040000,-16454.20480113,0.00020428,2]
[424997314,1781397040000,-1739.43400008,0.00020428,2]
[424997313,1781397040000,-365.54270048,0.00020428,2]
[424997326,1781397045000,-393.37466327,0.00020428,2]
[424997327,1781397045000,-4015.16878599,0.00020428,2]
[424997325,1781397045000,-1258.29738534,0.00020428,2]
[424997335,1781397947000,-573.97873348,0.00016438,2]
[424997338,1781398026000,-392.18513531,0.00016438,2]
[424997337,1781398026000,-548.2,0.00016438,2]
[424997336,1781398026000,-23.14126652,0.00016438,2]
[424997340,1781398032000,-156.80337388,0.00016558,2]
[424997339,1781398032000,-291.30486469,0.00016438,2]
[424997342,1781398231000,-579.2,0.00016931,2]
[424997344,1781398231000,-531.75,0.00016932,2]
[424997347,1781398231000,-2065.58471094,0.00017168,2]
[424997345,1781398231000,-500.0,0.0001696,2]
[424997346,1781398231000,-192.8752397,0.0001696,2]
[424997343,1781398231000,-2500.0,0.00016932,2]
[424997375,1781398239000,-434.41528906,0.00017168,2]
[424997407,1781398240000,-1619.8384786,0.00019676,2]
[424997397,1781398240000,-633.15293773,0.00019676,2]
[424997400,1781398240000,-72928.08219727,0.00019676,2]
[424997395,1781398240000,-170.70654269,0.00019675,2]
[424997391,1781398240000,-200.0,0.00019418,2]
[424997405,1781398240000,-12565.36292807,0.00019676,2]
[424997402,1781398240000,-43091.41227333,0.00019676,2]
[424997393,1781398240000,-200.60729673,0.00019675,2]
[424997390,1781398240000,-166.66,0.00019317,2]
[424997389,1781398240000,-207.52,0.00019281,2]
[424997388,1781398240000,-321.56,0.00019198,2]
[424997387,1781398240000,-176.49,0.00019101,2]
[424997380,1781398240000,-320.0,0.00017827,2]
[424997385,1781398240000,-2500.0,0.00018624,2]
[424997384,1781398240000,-166.66,0.00018552,2]
[424997382,1781398240000,-502.0,0.00018,2]
[424997386,1781398240000,-166.66,0.00018935,2]
[424997381,1781398240000,-320.0,0.00017827,2]
[424997379,1781398240000,-313.0,0.00017827,2]
[424997378,1781398240000,-151.0,0.00017191,2]
[424997377,1781398240000,-1515.90768796,0.00017168,2]
[424997376,1781398240000,-2500.0,0.00017168,2]
[424997383,1781398240000,-166.66,0.0001817,2]
[424997413,1781398240000,-155.73201421,0.00019963,2]
[424997428,1781398240000,-500.0,0.00020427,2]
[424997418,1781398240000,-172.0,0.0002,2]
[424997453,1781398240000,-22392.43984994,0.00020428,2]
[424997449,1781398240000,-314.0,0.00020428,2]
[424997451,1781398240000,-315.0,0.00020428,2]
[424997447,1781398240000,-309.0,0.00020428,2]
[424997445,1781398240000,-310.0,0.00020428,2]
[424997416,1781398240000,-2000.0,0.0002,7]
[424997438,1781398240000,-500.0,0.00020427,2]
[424997440,1781398240000,-317.0,0.00020428,2]
[424997430,1781398240000,-500.0,0.00020427,2]
[424997425,1781398240000,-151.0,0.00020381,2]
[424997426,1781398240000,-500.0,0.00020427,2]
[424997442,1781398240000,-309.0,0.00020428,2]
[424997434,1781398240000,-500.0,0.00020427,2]
[424997436,1781398240000,-500.0,0.00020427,2]
[424997427,1781398240000,-500.0,0.00020427,2]
[424997424,1781398240000,-814.7972574,0.00020328,2]
[424997423,1781398240000,-1953.41237672,0.00020328,2]
[424997422,1781398240000,-166.66,0.00020082,2]
[424997420,1781398240000,-172.0,0.0002,2]
[424997421,1781398240000,-219.0,0.0002,2]
[424997409,1781398240000,-166.66,0.000197,2]
[424997411,1781398240000,-302.89485056,0.00019863,2]
[424997432,1781398240000,-500.0,0.00020427,2]
[424997477,1781398241000,-942.01048094,0.00020428,2]
[424997476,1781398241000,-829.38379112,0.00020428,2]
[424997478,1781398241000,-90.87975926,0.00020428,2]
[424997482,1781398245000,-56.58631072,0.00020428,2]
[424997480,1781398245000,-60.12024074,0.00020428,2]
[424997481,1781398245000,-196.451331,0.00020428,2]
[424997484,1781398246000,-151.0,0.00020428,2]
[424997487,1781398246000,-240.0,0.00020548,2]
[424997483,1781398246000,-94.41368928,0.00020428,2]
[424997485,1781398246000,-151.0,0.00020428,2]
[424997486,1781398246000,-151.0,0.00020428,2]
[424997489,1781398246000,-200.0,0.00020824,2]
[424997496,1781398246000,-176.49,0.00021011,2]
[424997488,1781398246000,-200.0,0.00020618,2]
[424997493,1781398246000,-172.0,0.00021,2]
[424997495,1781398246000,-219.0,0.00021,2]
[424997497,1781398246000,-502.0,0.000211,4]
[424997498,1781398246000,-173.66569723,0.00021273,2]
[424997491,1781398246000,-172.0,0.00021,2]
[424997559,1781398626000,798.29893621,0.0001,2]
[424997560,1781398744000,250.0,0.00014,2]
[424997561,1781399236000,-500.0,0.00017091,2]
[424997563,1781399236000,-190.96680853,0.00017191,2]
[424997564,1781399236000,-151.0,0.00017191,2]
[424997562,1781399236000,-151.42,0.00017095,2]
[424997566,1781399236000,-61.28027546,0.00017191,2]
[424997565,1781399236000,-151.0,0.00017191,2]
[424997581,1781399431000,-1387.4604393,0.00017191,2]
[424997578,1781399431000,-261.3326655,0.00017191,2]
[424997577,1781399431000,-2238.6673345,0.00017191,2]
[424997579,1781399431000,-746.7265607,0.00017191,2]
[424997583,1781399431000,-151.0,0.00017191,2]
[424997586,1781399431000,-150.0,0.00017191,2]
[424997585,1781399431000,-151.0,0.00017191,2]
[424997582,1781399431000,-151.0,0.00017191,2]
[424997584,1781399431000,-153.0,0.00017191,2]
[424997587,1781399431000,-150.0,0.00017191,2]
[424997588,1781399431000,-152.0,0.00017191,2]
[424997589,1781399431000,-151.0,0.00017191,2]
[424997580,1781399431000,-365.813,0.00017191,2]
[424997609,1781399432000,-153.0,0.00017191,2]
[424997605,1781399432000,-151.0,0.00017191,2]
[424997608,1781399432000,-151.0,0.00017191,2]
[424997607,1781399432000,-151.0,0.00017191,2]
[424997606,1781399432000,-152.0,0.00017191,2]
[424997621,1781399432000,-152.0,0.00017191,2]
[424997630,1781399432000,-151.0,0.00017191,2]
[424997626,1781399432000,-151.0,0.00017191,2]
[424997632,1781399432000,-152.0,0.00017191,2]
[424997624,1781399432000,-151.0,0.00017191,2]
[424997634,1781399432000,-150.0,0.00017191,2]
[424997642,1781399432000,-151.0,0.00017191,2]
[424997644,1781399432000,-152.0,0.00017191,2]
[424997628,1781399432000,-151.0,0.00017191,2]
[424997601,1781399432000,-152.0,0.00017191,2]
[424997590,1781399432000,-151.0,0.00017191,2]
[424997603,1781399432000,-151.0,0.00017191,2]
[424997591,1781399432000,-151.0,0.00017191,2]
[424997595,1781399432000,-151.0,0.00017191,2]
[424997638,1781399432000,-151.0,0.00017191,2]
[424997592,1781399432000,-153.0,0.00017191,2]
[424997596,1781399432000,-152.0,0.00017191,2]
[424997593,1781399432000,-151.0,0.00017191,2]
[424997599,1781399432000,-152.0,0.00017191,2]
[424997594,1781399432000,-150.0,0.00017191,2]
[424997597,1781399432000,-151.0,0.00017191,2]
[424997617,1781399432000,-150.0,0.00017191,2]
[424997611,1781399432000,-152.0,0.00017191,2]
[424997615,1781399432000,-152.0,0.00017191,2]
[424997619,1781399432000,-151.0,0.00017191,2]
[424997613,1781399432000,-151.0,0.00017191,2]
[424997598,1781399432000,-151.0,0.00017191,2]
[424997640,1781399432000,-151.0,0.00017191,2]
[424997654,1781399432000,-531.31571858,0.00017192,2]
[424997681,1781399432000,-1649.12316066,0.0001891,2]
[424997686,1781399432000,-258.6475506,0.0001891,2]
[424997685,1781399432000,-659.1457183,0.0001891,2]
[424997684,1781399432000,-388.019697,0.0001891,2]
[424997682,1781399432000,-585.89382093,0.0001891,2]
[424997646,1781399432000,-151.0,0.00017191,2]
[424997679,1781399432000,-167.77044987,0.0001891,2]
[424997683,1781399432000,-79.90585764,0.0001891,2]
[424997678,1781399432000,-200.0,0.0001891,2]
[424997680,1781399432000,-264.98301841,0.0001891,2]
[424997676,1781399432000,-250.0,0.00018878,2]
[424997677,1781399432000,-600.0,0.0001891,2]
[424997675,1781399432000,-1085.58,0.0001872,2]
[424997674,1781399432000,-578.04,0.0001872,2]
[424997671,1781399432000,-1555.5,0.00018712,2]
[424997669,1781399432000,-3808.06,0.00018615,2]
[424997673,1781399432000,-681.90690743,0.0001872,2]
[424997670,1781399432000,-176.49,0.00018669,2]
[424997660,1781399432000,-500.0,0.00017502,2]
[424997657,1781399432000,-160.0,0.00017196,2]
[424997672,1781399432000,-1460.67309257,0.0001872,2]
[424997659,1781399432000,-150.0,0.00017502,2]
[424997661,1781399432000,-503.0,0.00018,2]
[424997648,1781399432000,-151.0,0.00017191,2]
[424997663,1781399432000,-151.0,0.00018,2]
[424997662,1781399432000,-152.0,0.00018,2]
[424997652,1781399432000,-151.0,0.00017191,2]
[424997667,1781399432000,-999.99,0.00018164,2]
[424997664,1781399432000,-151.0,0.00018,2]
[424997666,1781399432000,-1500.0,0.00018164,2]
[424997665,1781399432000,-150.0,0.00018,2]
[424997668,1781399432000,-200.0,0.00018615,2]
[424997650,1781399432000,-151.0,0.00017191,2]
[424997720,1781399440000,-166.66,0.00019714,2]
[424997717,1781399440000,-265955.8411441,0.00019602,2]
[424997716,1781399440000,-218.7330063,0.00019602,2]
[424997718,1781399440000,-5180.7976914,0.00019602,2]
[424997724,1781399440000,-164.0,0.0002,2]
[424997721,1781399440000,-240.0,0.0002,2]
[424997723,1781399440000,-300.96499495,0.0002,2]
[424997722,1781399440000,-360.0,0.0002,2]
[424997715,1781399440000,-500.0,0.00019601,2]
[424997719,1781399440000,-15771.7469522,0.00019602,2]
[424997713,1781399440000,-11932.9776484,0.00019579,2]
[424997731,1781399440000,-166.66,0.0002051,2]
[424997711,1781399440000,-166.66,0.00019316,2]
[424997712,1781399440000,-655.14764186,0.00019502,2]
[424997709,1781399440000,-257.24,0.00019126,2]
[424997710,1781399440000,-1090.04551276,0.0001926,2]
[424997708,1781399440000,-150.0,0.00019088,2]
[424997707,1781399440000,-166.66,0.00018917,2]
[424997706,1781399440000,-394.92164801,0.0001891,2]
[424997705,1781399440000,-439.71766397,0.0001891,2]
[424997704,1781399440000,-323.11959366,0.0001891,2]
[424997703,1781399440000,-791.1615828,0.0001891,2]
[424997714,1781399440000,-500.0,0.00019601,2]
[424997732,1781399440000,-655.14764185,0.00020703,2]
[424997748,1781399440000,-500.0,0.00021254,2]
[424997727,1781399440000,-166.66,0.00020112,2]
[424997725,1781399440000,-208.0,0.0002,2]
[424997751,1781399440000,-500.0,0.00021254,2]
[424997749,1781399440000,-150.0,0.00021254,2]
[424997747,1781399440000,-500.0,0.00021254,2]
[424997746,1781399440000,-500.0,0.00021254,2]
[424997744,1781399440000,-500.0,0.00021254,2]
[424997738,1781399440000,-208.0,0.00021,2]
[424997737,1781399440000,-164.0,0.00021,2]
[424997739,1781399440000,-163.0,0.00021,2]
[424997736,1781399440000,-503.0,0.00020952,4]
[424997745,1781399440000,-500.0,0.00021254,2]
[424997743,1781399440000,-151.0,0.00021173,2]
[424997728,1781399440000,-500.0,0.00020427,2]
[424997735,1781399440000,-166.66,0.00020909,2]
[424997730,1781399440000,-500.0,0.00020427,2]
[424997729,1781399440000,-500.0,0.00020427,2]
[424997726,1781399440000,-163.0,0.0002,2]
[424997750,1781399440000,-500.0,0.00021254,2]
[424997740,1781399440000,-1758.07113903,0.00021173,2]
[424997742,1781399440000,-1531.01711368,0.00021173,2]
[424997741,1781399440000,-151.0,0.00021173,2]
[424997734,1781399440000,-1500.0,0.000209,7]
[424997733,1781399440000,-700.0,0.000208,7]
[424997777,1781399441000,-1000.0,0.00021273,2]
[424997788,1781399441000,-151.0,0.00021273,2]
[424997780,1781399441000,-1000.0,0.00021273,2]
[424997794,1781399441000,-500.0,0.00021917,2]
[424997783,1781399441000,-1000.0,0.00021273,2]
[424997784,1781399441000,-1000.0,0.00021273,2]
[424997793,1781399441000,-500.0,0.00021917,2]
[424997785,1781399441000,-1000.0,0.00021273,2]
[424997782,1781399441000,-1000.0,0.00021273,2]
[424997786,1781399441000,-1008.79341403,0.00021273,2]
[424997776,1781399441000,-1000.0,0.00021273,2]
[424997798,1781399441000,-164.0,0.00022,2]
[424997790,1781399441000,-200.0,0.00021486,2]
[424997787,1781399441000,-200.0,0.00021273,2]
[424997792,1781399441000,-655.14764185,0.00021904,2]
[424997791,1781399441000,-257.24,0.00021517,2]
[424997795,1781399441000,-5000.0,0.00021918,2]
[424997797,1781399441000,-151.0,0.00021918,2]
[424997806,1781399441000,-500.0,0.00022409,2]
[424997803,1781399441000,-151.0,0.00022353,2]
[424997775,1781399441000,-1000.0,0.00021273,2]
[424997801,1781399441000,-1758.07113899,0.00022188,2]
[424997800,1781399441000,-163.0,0.00022,2]
[424997789,1781399441000,-235.44852284,0.00021273,2]
[424997774,1781399441000,-1000.0,0.00021273,2]
[424997767,1781399441000,-1000.0,0.00021273,2]
[424997770,1781399441000,-1000.0,0.00021273,2]
[424997799,1781399441000,-208.0,0.00022,2]
[424997755,1781399441000,-300.0,0.00021254,2]
[424997752,1781399441000,-500.0,0.00021254,2]
[424997753,1781399441000,-500.0,0.00021254,2]
[424997756,1781399441000,-300.0,0.00021254,2]
[424997754,1781399441000,-500.0,0.00021254,2]
[424997769,1781399441000,-1000.0,0.00021273,2]
[424997758,1781399441000,-300.0,0.00021254,2]
[424997757,1781399441000,-300.0,0.00021254,2]
[424997768,1781399441000,-1000.0,0.00021273,2]
[424997759,1781399441000,-2000.0,0.00021254,2]
[424997760,1781399441000,-151.0,0.00021255,2]
[424997761,1781399441000,-1205065.9927,0.00021255,2]
[424997763,1781399441000,-1000.0,0.00021273,2]
[424997765,1781399441000,-1000.0,0.00021273,2]
[424997766,1781399441000,-1000.0,0.00021273,2]
[424997762,1781399441000,-1000.0,0.00021273,2]
[424997764,1781399441000,-1000.0,0.00021273,2]
[424997771,1781399441000,-1000.0,0.00021273,2]
[424997781,1781399441000,-1000.0,0.00021273,2]
[424997778,1781399441000,-1000.0,0.00021273,2]
[424997773,1781399441000,-1000.0,0.00021273,2]
[424997772,1781399441000,-1000.0,0.00021273,2]
[424997779,1781399441000,-1000.0,0.00021273,2]
[424997802,1781399441000,-216.029201,0.00022255,2]
[424997849,1781399441000,-151.0,0.00023096,2]
[424997807,1781399441000,-1976.39,0.00022466,2]
[424997835,1781399441000,-151.0,0.00023096,2]
[424997834,1781399441000,-1712.93078311,0.00023096,2]
[424997838,1781399441000,-1842.0326633,0.00023096,2]
[424997836,1781399441000,-1776.30922209,0.00023096,2]
[424997837,1781399441000,-151.0,0.00023096,2]
[424997839,1781399441000,-151.0,0.00023096,2]
[424997841,1781399441000,-151.0,0.00023096,2]
[424997840,1781399441000,-1910.18787185,0.00023096,2]
[424997842,1781399441000,-1980.8648231,0.00023096,2]
[424997844,1781399441000,-151.0,0.00023096,2]
[424997843,1781399441000,-2054.15682156,0.00023096,2]
[424997846,1781399441000,-151.0,0.00023096,2]
[424997848,1781399441000,-151.0,0.00023096,2]
[424997847,1781399441000,-151.0,0.00023096,2]
[424997850,1781399441000,-151.0,0.00023096,2]
[424997851,1781399441000,-655.14764185,0.00023105,2]
[424997852,1781399441000,-1758.07113899,0.00023203,2]
[424997853,1781399441000,-733.0,0.00023387,7]
[424997856,1781399441000,-425.36646954,0.00023729,2]
[424997854,1781399441000,-518.5,0.00023644,2]
[424997855,1781399441000,-178.0984229,0.00023644,2]
[424997857,1781399441000,-766.0,0.00023819,5]
[424997804,1781399441000,-150.98884553,0.00022407,2]
[424997832,1781399441000,-1592.87721992,0.00023096,2]
[424997833,1781399441000,-1651.81367706,0.00023096,2]
[424997845,1781399441000,-151.0,0.00023096,2]
[424997831,1781399441000,-1536.04360648,0.00023096,2]
[424997805,1781399441000,-150.98884551,0.00022407,2]
[424997826,1781399441000,-1328.27659266,0.00023096,2]
[424997796,1781399441000,-150.0,0.00021918,2]
[424997820,1781399441000,-1107.63007,0.00023096,2]
[424997808,1781399441000,-2142.58,0.00022691,2]
[424997809,1781399441000,-578.04,0.00022691,2]
[424997819,1781399441000,-1068.11,0.00023096,2]
[424997810,1781399441000,-1085.58,0.00022691,2]
[424997811,1781399441000,-164.0,0.00023,2]
[424997816,1781399441000,-49692.5899,0.0002308,2]
[424997814,1781399441000,-150.0,0.00023014,2]
[424997813,1781399441000,-163.0,0.00023,2]
[424997812,1781399441000,-208.0,0.00023,2]
[424997815,1781399441000,-206.304424,0.0002308,2]
[424997827,1781399441000,-151.0,0.00023096,2]
[424997829,1781399441000,-1428.38747117,0.00023096,2]
[424997823,1781399441000,-1191.11104074,0.00023096,2]
[424997830,1781399441000,-1481.2378076,0.00023096,2]
[424997824,1781399441000,-1235.18214925,0.00023096,2]
[424997828,1781399441000,-1377.42282658,0.00023096,2]
[424997822,1781399441000,-1148.61238259,0.00023096,2]
[424997821,1781399441000,-178.0984229,0.00023096,2]
[424997817,1781399441000,-500.0,0.00023096,2]
[424997818,1781399441000,-1030.0,0.00023096,2]
[424997825,1781399441000,-1280.88388877,0.00023096,2]
[424997899,1781399442000,-156.01674226,0.00026027,2]
[424997898,1781399442000,-2200.0,0.000259,9]
[424997897,1781399442000,-178.0984229,0.00025836,2]
[424997890,1781399442000,-178.0984229,0.00025288,2]
[424997892,1781399442000,-185.69,0.00025375,120]
[424997887,1781399442000,-154.29,0.00025,2]
[424997891,1781399442000,-150.0,0.00025373,2]
[424997888,1781399442000,-617.0,0.00025096,2]
[424997894,1781399442000,-500.0,0.00025522,2]
[424997895,1781399442000,-158.0,0.00025671,2]
[424997886,1781399442000,-177.0,0.00025,2]
[424997889,1781399442000,-1758.07113899,0.00025234,2]
[424997901,1781399442000,-1758.07113899,0.00026249,2]
[424997910,1781399442000,-655.14764185,0.00026707,2]
[424997907,1781399442000,-500.0,0.00026629,2]
[424997908,1781399442000,-150.0,0.00026641,2]
[424997902,1781399442000,-151.0,0.00026296,2]
[424997906,1781399442000,-178.0984229,0.00026384,2]
[424997900,1781399442000,-152.0,0.0002623,4]
[424997905,1781399442000,-3644.0,0.00026359,2]
[424997903,1781399442000,-257.24,0.00026298,2]
[424997909,1781399442000,-888.0,0.000267,2]
[424997911,1781399442000,-503.0,0.00026857,10]
[424997918,1781399442000,-1359.0,0.00027135,2]
[424997913,1781399442000,-1942.86,0.00026945,120]
[424997896,1781399442000,-151.0,0.00025835,2]
[424997904,1781399442000,-6076.0,0.00026359,2]
[424997893,1781399442000,-655.14764185,0.00025506,2]
[424997861,1781399442000,-164.0,0.00024,2]
[424997880,1781399442000,-178.0984229,0.0002474,2]
[424997919,1781399442000,-383.0,0.00027135,2]
[424997862,1781399442000,-208.0,0.00024,2]
[424997860,1781399442000,-257.24,0.00023908,2]
[424997859,1781399442000,-503.0,0.00023905,7]
[424997858,1781399442000,-152.0,0.0002387,3]
[424997863,1781399442000,-163.0,0.00024,2]
[424997864,1781399442000,-150.0,0.00024164,2]
[424997865,1781399442000,-537.6845,0.00024192,2]
[424997868,1781399442000,-655.14764185,0.00024306,2]
[424997869,1781399442000,-151.0,0.00024324,2]
[424997866,1781399442000,-178.0984229,0.00024192,2]
[424997873,1781399442000,-151.0,0.00024658,2]
[424997885,1781399442000,-221.0,0.00025,2]